Cogmind - Beta 17 @@@ ROGUE MODE // 2026.08.12 @ 12:41:36 Player: Ev Result: Destroyed by Q1-NZ9(R) with Subdweller Laser Performance ------------- Evolutions (0) 0 Regions Visited (2) 400 Robots Destroyed (45) 225 Value Destroyed (605) 605 Prototype IDs (3) 60 Alien Tech Used (0) 0 Bonus (5250) 5250 TOTAL SCORE: 6540 Bonus ------- Prayed to X0-1V1 5000 Major X0-1V1 Interference 250 Cogmind --------- Core Integrity 0/250 Matter 281/700 Energy 124/125 System Corruption 4% Temperature Cool (6) Movement Core (100) Ox1 Location -10/Subcaves Parts ------- > --- POWER (1) -------- Light Ion Engine > --- PROPULSION (2) --- (None) > --- UTILITY (2) ------ Signal Interpreter X0-1V1's Piety Tracker > --- WEAPON (5) ------- (None) > --- INVENTORY (5) ---- Machine Analyzer Targeting Computer Hacking Suite Recalibrator Datajack Peak State ------------ > --- POWER ------------ Light Ion Engine > --- PROPULSION ------- Hover Unit Hover Unit > --- UTILITY ---------- Signal Interpreter X0-1V1's Piety Tracker > --- WEAPON ----------- Beam Cannon Grenade Launcher > --- INVENTORY -------- High-capacity Battery Targeting Computer Light Armor Plating Hacking Suite Recalibrator [Rating: 20] Favorites ----------- Power Light Ion Engine Engine Light Ion Engine Propulsion Hover Unit Wheel Wheel Hover Unit Hover Unit Flight Unit Flight Unit Utility Signal Interpreter Device Improved Terrain Scanner Storage Small Storage Unit Processor Signal Interpreter Weapon Grenade Launcher Energy Gun EM Pulse Gun Energy Cannon Beam Cannon Ballistic Gun Assault Rifle Launcher Grenade Launcher Special Weapon Mining Laser Build | -11 -10 -10 ------- Run | Yrd Mat Sub Slots Evolved . | . . . Power . | . . . Propulsion . | . . . Utility . | . . . Weapon . | . . . Parts Attached 37 | 13 24 . Power 5 | 2 3 . Engine 5 | 2 3 . Core . | . . . Reactor . | . . . Propulsion 11 | 4 7 . Treads . | . . . Leg . | . . . Wheel 4 | 4 . . Hover 2 | . 2 . Flight 5 | . 5 . Utility 9 | 3 6 . Device 4 | 1 3 . Storage 2 | 2 . . Processor 3 | . 3 . Hackware . | . . . Protection . | . . . Artifact . | . . . Weapon 12 | 4 8 . Energy Gun 2 | . 2 . Energy Cannon 1 | . 1 . Ballistic Gun 5 | 2 3 . Ballistic Cannon . | . . . Launcher 2 | . 2 . Special Weapon 2 | 2 . . Impact Weapon . | . . . Slashing Weapon . | . . . Piercing Weapon . | . . . Special Melee Weapon . | . . . Unidentified Prototypes 1 | . 1 . Parts Lost 10 | . 6 4 Power 1 | . 1 . Propulsion 4 | . 2 2 Utility 2 | . 2 . Weapon 3 | . 1 2 Highest Loss Streak 3 | . 2 3 To Critical Strikes . | . . . Average Backups 5 | 6 5 5 Power . | 1 . . Propulsion 1 | 2 . . Utility 3 | 1 3 4 Weapon . | . . . Tool/Special . | . . . Unused Backups 20 | 4 11 5 Power 2 | 2 . . Propulsion 4 | 1 3 . Utility 12 | . 8 4 Weapon 1 | 1 . . Tool/Special 1 | . . 1 Average Slot Usage (%) 93 | . 94 84 Engine 13 | . 13 14 Wheel 3 | . 3 . Hover 13 | . 13 15 Flight 8 | . 10 . Device 11 | . 10 14 Storage 2 | . 2 . Processor 12 | . 12 14 Energy Gun 1 | . 2 . Energy Cannon 8 | . 7 14 Ballistic Gun 3 | . 4 . Launcher 8 | . 8 11 Special Weapon 3 | . 3 . Peak Build Rating 20 | 9 20 20 Average Rating 11 | 7 12 18 On Entrance 9 | . 9 20 Avg Prop Armor Cover (%) . | . . . Naked Turns . | . . . Heaviest Build 15 | 15 14 10 Greatest Support 32 | 32 20 12 Greatest Overweight (x) 2 | . 2 2 Average Overweight (x) . | . . . Largest Inventory Capacity 8 | 8 8 5 Average Capacity 6 | 7 5 5 Most Carried 8 | 8 8 5 Average Carried 5 | 6 5 5 Final Capacity 8 | 8 5 5 Final Carried 8 | 8 5 5 Class Distribution -------------------- 53% | Mutant 46% | Scavenger-Mutant Dominant Class ---------------- Mutant | -10/Materials Mutant | -10/Subcaves Resources | -11 -10 -10 ----------- Run | Yrd Mat Sub Matter Collected 1066 | 481 461 124 Remotely . | . . . Salvage Created 983 | 247 646 90 Parts 86 | 24 49 13 Haulers Intercepted 2 | . 2 . Recyclers Shooed 1 | . 1 . Parts Field Recycled . | . . . Retrieved Matter . | . . . Parts Self-Destructed 1 | . . 1 Prevented . | . . . Parts Restored . | . . . Kills | -11 -10 -10 ------- Run | Yrd Mat Sub Combat Hostiles Destroyed 20 | . 12 8 Guns 6 | . 6 . Cannons 2 | . 1 1 AOE 12 | . 5 7 Classes Destroyed 11 | 3 7 1 Worker 4 | 4 . . Builder 1 | . 1 . Tunneler 9 | 9 . . Hauler 2 | . 2 . Recycler 4 | 1 3 . Mechanic 1 | . 1 . Operator 1 | . 1 . Watcher 3 | . 3 . Swarmer 12 | . 9 3 Grunt 7 | . 3 4 Subdweller 1 | . . 1 Best Kill Streak 7 | 3 5 7 Combat Bots Only 7 | . 3 7 Max Kills in Single Turn 3 | 1 2 3 Gunslinging . | . . . Exploded 3 | . 2 3 Melee . | . . . Uniques/NPCs Destroyed . | . . . Combat | -11 -10 -10 -------- Run | Yrd Mat Sub Hostile Shots Fired 64 | . 40 24 Missed 19 | . 13 6 Hits 45 | . 27 18 Projectile 45 | . 27 18 AOE 3 | . . 3 Damage Taken 858 | . 467 391 Core 267 | . 122 145 Absorbed by Shields . | . . . Core Remaining (%) 100 | 100 . . Volleys Fired 133 | 31 83 19 Largest 2 | 2 2 1 Hottest 200 | 200 80 60 Shots Fired 175 | 48 108 19 Gun 99 | 32 67 . Cannon 34 | . 23 11 Launcher 26 | . 18 8 Special 16 | 16 . . Kinetic 81 | 32 49 . Thermal 50 | 16 23 11 Explosive 26 | . 18 8 Electromagnetic 18 | . 18 . Robot Hit Streak 13 | 6 13 8 Robot Miss Streak 11 | 6 11 1 Penetration Max . | . . . Secondary Targets . | . . . Shots Hit Robots 91 | 23 57 11 Core Hits 57 | 14 30 13 Critical Kills 2 | . 2 . Critical Parts Destroyed . | . . . Critical Strikes 2 | . 2 . Meltdown 2 | . 2 . Melee Attacks . | . . . Impact . | . . . Slashing . | . . . Piercing . | . . . Sneak Attacks . | . . . Combat Hostiles . | . . . Follow-up Attacks . | . . . Damage Inflicted 2304 | 392 1248 664 Guns 604 | 224 380 . Cannons 507 | . 367 140 Explosions 1025 | . 501 524 Melee . | . . . Ramming . | . . . Kinetic 433 | 224 209 . Thermal 769 | 168 461 140 Explosive 931 | . 407 524 Electromagnetic 171 | . 171 . Impact . | . . . Slashing . | . . . Piercing . | . . . Highest Corruption 4 | . 1 4 Average Corruption 1 | . 1 3 Corruption Purged . | . . . Corruption Blocked . | . . . Effects 9 | . 5 4 Message Errors 2 | . 1 1 Matter Fused 1 | . 1 . Heat Flow Errors 2 | . 2 . Data Loss (minor) 1 | . . 1 Data Loss (major) 1 | . . 1 Misfires 1 | . 1 . Weapon Failures 1 | . . 1 Overload Shots . | . . . Overflow Damage 141 | 10 124 7 Projectiles 13 | 10 3 . Explosions 128 | . 121 7 Melee . | . . . Knockbacks . | . . . Impact . | . . . Kinetic . | . . . Secondary . | . . . Self-Inflicted Damage 266 | . 227 39 Shots 9 | . 7 2 Rammed . | . . . Targets Rammed . | . . . Kicked . | . . . Crushed . | . . . Highest Temperature 275 | 60 275 . Average Temperature 52 | 20 63 . Received Heat Transfer 120 | . 42 78 Effects 2 | . 2 . Interference 2 | . 2 . Siege Activations . | . . . Martial Activations . | . . . Shielding Activations . | . . . Robots Disrupted . | . . . Combat Hostiles . | . . . Robots Corrupted . | . . . Combat Hostiles . | . . . Parts Fried . | . . . Impact Corruptions . | . . . Robots Melted 2 | . 2 . Combat Hostiles . | . . . Parts Melted 1 | . 1 . Heat Transferred 1523 | 350 877 296 Parts Sabotaged . | . . . Parts Stolen . | . . . Parts Stripped . | . . . Power Chain Reactions 2 | . 2 . Alert | -11 -10 -10 ------- Run | Yrd Mat Sub Maximum Alert Level . | . . . Low Security (%) 100 | 100 100 . Level 1 . | . . . Level 2 . | . . . Level 3 . | . . . Level 4 . | . . . Level 5 . | . . . High Security . | . . . Max Security . | . . . Peak Influence 170 | 10 170 . Initial . | . . . Average 68 | 1 107 . Influence Increases 811 | 70 591 150 Destroy 0b10 Robot/C 380 | . 240 140 Destroy 0b10 Robot/NC 125 | 70 55 . Destroy Leader 70 | . 60 10 Successful Hack 34 | . 34 . Select Force Hacks 60 | . 60 . Disable Machine 45 | . 45 . Destroy Structure 67 | . 67 . Partial Spotted 15 | . 15 . Lose Combat Pursuer 15 | . 15 . Influence Decreases 719 | 70 450 199 Entered New Map 69 | . . 69 Time Decay 550 | 70 390 90 Lost Part 100 | . 60 40 Squads Dispatched 4 | . 4 . Investigation 4 | . 4 . Extermination . | . . . Reinforcement . | . . . Assault . | . . . Garrison . | . . . Intercept . | . . . Searches Triggered . | . . . Construction Impeded . | . . . Haulers Reinforced . | . . . Active Scanning Responses . | . . . Cargo Convoy Interrupts . | . . . Stealth | -11 -10 -10 --------- Run | Yrd Mat Sub Distress Signals 1 | . 1 . Communications Jammed . | . . . Distress Signals . | . . . Times Spotted 32 | . 23 9 Peak Tracking Total 7 | . 5 7 Tactical Retreats 1 | . 1 . Traps | -11 -10 -10 ------- Run | Yrd Mat Sub Traps Triggered . | . . . Indirectly . | . . . Trap Hack Attempts . | . . . Triggered . | . . . Disarmed . | . . . Reprogrammed . | . . . Reused . | . . . Traps Extracted . | . . . Installed . | . . . Triggered . | . . . Machines | -11 -10 -10 ---------- Run | Yrd Mat Sub Machines Disabled 3 | . 3 . Max in Single Turn 1 | . 1 . Machines Repaired . | . . . Machines Dismantled . | . . . Machines Sabotaged . | . . . Overloaded Fab Kills . | . . . Hacking | -11 -10 -10 --------- Run | Yrd Mat Sub Machines Accessed 9 | . 9 . Terminals 7 | . 7 . Fabricators . | . . . Repair Stations . | . . . Recycling Units 2 | . 2 . Scanalyzers . | . . . Garrison Access . | . . . Total Hacks 42 | . 42 . Successful 26 | . 26 . Failed 15 | . 15 . Catastrophic 2 | . 2 . Database Lockouts 1 | . 1 . Manual 37 | . 37 . Terminals 36 | . 36 . Fabricators . | . . . Repair Stations . | . . . Recycling Units 6 | . 6 . Scanalyzers . | . . . Garrison Access . | . . . Terminal Hacks 10 | . 10 . Record 1 | . 1 . Prototype ID Bank 1 | . 1 . Branch Access Points 1 | . 1 . Emergency Access Points 1 | . 1 . Alert Level 1 | . 1 . Locate Traps 2 | . 2 . Dispatch Records 1 | . 1 . Zone Layout 2 | . 2 . Fabricator Hacks . | . . . Repair Station Hacks . | . . . Recycling Unit Hacks 2 | . 2 . Retrieve Matter 1 | . 1 . Retrieve Components 1 | . 1 . Scanalyzer . | . . . Garrison Access Hacks . | . . . Unauthorized Hacks 14 | . 14 . Terminals 12 | . 12 . Track 3 | . 3 . Assimilate 1 | . 1 . Botnet 7 | . 7 . Operators 1 | . 1 . Fabricators . | . . . Repair Stations . | . . . Recycling Units 2 | . 2 . Tunnel 2 | . 2 . Scanalyzers . | . . . Garrison Access . | . . . Data Cores Recovered . | . . . Used . | . . . Hacking Detections 8 | . 8 . Full Trace Events 5 | . 5 . Feedback Events 1 | . 1 . Corruption 1 | . 1 . Feedback Blocked . | . . . Robot Schematics Acquired . | . . . Robots Built . | . . . Authchips . | . . . Time . | . . . Total Robot Build Rating . | . . . Part Schematics Acquired . | . . . Parts Built . | . . . Authchips . | . . . Time . | . . . Total Part Build Rating . | . . . Part Studies Acquired . | . . . Parts Repaired . | . . . Time . | . . . Parts Recycled . | . . . Recycled Matter . | . . . Retrieved Matter . | . . . Retrieved Components 6 | . 6 . Parts Scanalyzed . | . . . Part Schematics Acquired . | . . . Parts Damaged . | . . . Bothacking | -11 -10 -10 ------------ Run | Yrd Mat Sub Used RIF Installer . | . . . Robots Hacked . | . . . Non-combat . | . . . Combat . | . . . Robot Hacks Applied . | . . . Relay Couplers Released . | . . . Fabnet Peak Effective % . | . . . Robots Rewired . | . . . Allies Hacked . | . . . Hacks Repelled . | . . . Allies | -11 -10 -10 -------- Run | Yrd Mat Sub Total Allies . | . . . Largest Group . | . . . Highest-Rated Group . | . . . Highest-Rated Ally . | . . . Total Orders . | . . . Ally Attacks . | . . . Total Damage . | . . . Kills . | . . . Allies Corrupted . | . . . Allies Melted . | . . . X0-1V1 Amusement Gains 52 | . 27 25 Good Acts 3 | . 2 1 Bad Acts 5 | . . 5 Intel | -11 -10 -10 ------- Run | Yrd Mat Sub Active Infowar (turns) 963 | 501 462 . Terrain 882 | 501 381 . Seismic 18 | . 18 . T.N.C. 63 | . 63 . Robot Analysis Total . | . . . Derelict Logs Recovered . | . . . Drone Launches . | . . . Drone Recoveries . | . . . Exploration | -11 -10 -10 ------------- Run | Yrd Mat Sub Turns Passed 1806 | 596 1029 181 Spaces Moved 1582 | 456 976 150 Core 7 | 3 . 4 Treads . | . . . Legs . | . . . Wheels 571 | 453 118 . Hover 527 | . 381 146 Flight 477 | . 477 . Fastest Speed 37 | 50 37 56 Average Speed 66 | 88 52 94 Slowest Speed 200 | 100 200 150 Overloaded Moves . | . . . Propulsion Burnouts . | . . . Robots Hopped 1 | . 1 . Potential Cave-ins 4 | . 4 . Cave-ins Triggered . | . . . Exploration Rate (%) 40 | 11 98 12 Regions Visited 2 Branch Regions 1 Pre-discovered Areas 2 | . 2 . Known Exits Taken 1 | . 1 . Unknown Exits Taken 1 | 1 . . Scrap Searched . | . . . Spaces Dug . | . . . Terrain Destroyed 142 | 3 98 41 Melee . | . . . Projectile 3 | 3 . . AOE 139 | . 98 41 Terrain Rammed . | . . . Walls Destroyed . | . . . Machines Disabled . | . . . Actions | -11 -10 -10 --------- Run | Yrd Mat Sub Total 2153 | 567 1415 171 Wait 284 | 38 244 2 Move 1578 | 455 973 150 Hop 1 | . 1 . Pick Up 56 | 19 37 . Fast Attach 6 | 2 4 . Attach 25 | 8 17 . Detach 7 | 1 6 . Swap 18 | 7 11 . Drop 45 | 6 39 . Fire 133 | 31 83 19 Melee . | . . . Ram . | . . . Kick . | . . . Crush . | . . . Escape Stasis . | . . . Rewire . | . . . Trap . | . . . Miscellaneous . | . . . Route ------- -11/Scrapyard -10/Materials (discovered 5 exits: *Mat x3 / *Min / *Sub) -10/Subcaves History --------- Turn | Location | Event 2 | -11/Scrapyard | Met Revision 17 12 | -11/Scrapyard | Discovered new exit (range 15) 597 | -11/Scrapyard | Entered Materials 598 | -10/Materials | Build established: Scavenger-Mutant 952 | -10/Materials | Discovered new exit (range 4) 953 | -10/Materials | Identified exit to Materials 1061 | -10/Materials | Discovered new exit (range 16) 1062 | -10/Materials | Identified exit to Mines 1062 | -10/Materials | Central database locked down 1154 | -10/Materials | Discovered exit to Materials (range 16) 1216 | -10/Materials | Prayed at D.C.S.S. Altar Unit 1342 | -10/Materials | Build established: Mutant 1416 | -10/Materials | Discovered exit to Materials (range 15) 1551 | -10/Materials | X0-1V1 foreshadows a heat wave 1596 | -10/Materials | Discovered new exit (range 12) 1604 | -10/Materials | Identified exit to Subcaves 1626 | -10/Materials | Entered Subcaves 1664 | -10/Subcaves | X0-1V1 sent hostile G-34 Mercenary (x4) 1672 | -10/Subcaves | Core integrity fell below 50% 1693 | -10/Subcaves | Destroyed 7 combat bots 1766 | -10/Subcaves | Ambushed by Subdwellers from Twisted Machinery 1782 | -10/Subcaves | Core integrity fell below 20% 1806 | -10/Subcaves | Weapon slot count temporarily expanded by X0-1V1 (+3) 1807 | -10/Subcaves | Destroyed by Q1-NZ9(R) with Subdweller Laser Last Messages --------------- Machinery. 01777_ Hover Unit destroyed. 01777_ X0-1V1 is interested. 01777_ Destroyed Hover Unit. 01779_ Grenade Launcher destroyed. 01785_ L6-RDB(R) destroyed. 01788_ Q1-NZ9(R) affixes Scrap Shield Fragment to Scrap Shield. 01799_ System corrupted: Beam Cannon failed to cycle. 01801_ Q1-NZ9(R) affixes Scrap Shield Fragment to Scrap Shield. 01803_ Beam Cannon destroyed. 01803_ X0-1V1 is amused. 01804_ Subatomizers dissect the Sub. Monowheel. 01806_ X0-1V1: "Weapons, camera, action!" (+3 weapon slots) 01806_ Q1-NZ9(R) affixes Scrap Shield Fragment to Scrap Shield. 01807_ X0-1V1 guffaws! Map ----- +----------------------------------------------------+ | | | | | ?????????????????????????????????????????????????? | | ?????????????????????????????????????????????????? | | ?????????????????????????????????????????????????? | | ?????????????????????????????????????????????????? | | ?????????????????????????????????????????????????? | | ?????????????????????????????????????????????????? | | ?????????????????????????????????????????????????? | | ?????????????????????????????????????????????????? | | #???????##???????????????????????????????????????? | | ?$?##### ????????????????????????????????????????? | | ?? # ?????????????????????????????????????????? | | ??? ##????????????##??????????????????????????? | | ???## "#????????##### ??????????????????????????? | | ?###" "###?????## ##????????????????????????? | | ## " ###??##;;;; #####????????????????????? | | #### ; #????????????????????? | | ## #????????????????????? | | #????????????????????? | | ### #????????????????????? | | ##?## #????????????????????? | | ##???# # ##???????????????????? | | #????# # #???????????????????? | | #???#""" = ##???????????????????? | | ##???"" " ! R @ #????????????????????? | | ##??? " "" !*%#####????????????????????? | | # #????#"##" """"& #???????????????????????? | | ## ####???????## """"" ##??????????????????????? | | ?# #???????????# """"" #??????????????????????? | | ?# #???????????"" " """ #??????????????????????? | | ?## #?????????? " """ "" #?????????????????????? | | ??# #??????????? " ????????????????????? | | ??####??????????" "" ???????????????????? | | ????????????????"""" "" ??????????????????? | | ?????????????????#"""" " ????????????????? | | ??????????????????" """"""""" ##???????????????? | | ??????????????????"""""" " ##????????????????? | | ????????????????????? ??? #?????????????????? | | ??????????????????????? ?????? ?????????????????? | | ??????????????????????????????? #????????????????? | | ???????????????????????????????? ????????????????? | | ????????????????????????????????? ???????????????? | | ?????????????????????????????????????????????????? | | ?????????????????????????????????????????????????? | | ?????????????????????????????????????????????????? | | ?????????????????????????????????????????????????? | | ?????????????????????????????????????????????????? | | ?????????????????????????????????????????????????? | | ?????????????????????????????????????????????????? | +----------------------------------------------------+ Best States ------------- Heat Dissipation 25 Energy Generation 10 Energy Capacity 250 Matter Stores 350 Matter Capacity 700 Sight Range 16 Terrain Scan Range 16 Terrain Scan Density 10 Evasion (%) 62 Item Schematics ----------------- None Robot Schematics ------------------ None Fabricated ------------ Nothing Repaired ---------- Nothing Studied --------- None Alien Tech Used ----------------- None Achievements -------------- None Challenges ------------ None Game ------ Seed SiegeBraceDetector Manual? 0 Play Time 00:29:29 Cumulative 80.5 hours Start 2026.08.12 @ 12:09:12 End 2026.08.12 @ 12:41:36 Sessions 1 Manual Loads 0 Difficulty Rogue Special Mode None Game No. 141 Rogue 141 Adventurer 0 Explorer 0 Win Type - Total 0 Types 0/0/0/0/0/0/0/0/0/0 Lore% 27 Gallery% 34 Achievement% 28 Wizard Run 0 Options --------- Layout 1 ASCII 0 Keyboard 0 Movement Mouse Keybinds 0 Fullscreen 1 Font 24/Smallcaps Map View 50x35 Zoom Use 0% Tactical HUD 1 Map Filters NONE Filters NONE Steam 1 RUN: 72e4d3a0-51f3-4d07-be6c-1b831f1628c6